bitfinex/quotes_BTCUSD_20250723
["timestamp","ask_amount","ask_price","bid_price","bid_amount"]
[1753267652482,1e-08,118450.0,118440.0,1.58619966]
[1753267652709,0.02106001,118450.0,118440.0,1.58619966]
[1753267656376,0.03666001,118450.0,118440.0,1.58619966]
[1753267657014,0.02106001,118450.0,118440.0,1.58619966]
[1753267659803,0.42106001,118450.0,118440.0,1.58619966]
[1753267659950,0.01785001,118450.0,118440.0,1.58619966]
[1753267661995,1e-08,118450.0,118440.0,1.95351503]
[1753267662984,1e-08,118450.0,118440.0,1.94247119]
[1753267674439,1e-08,118450.0,118440.0,1.92637119]
[1753267674906,0.00526001,118450.0,118440.0,1.58619966]
[1753267675112,0.02116001,118450.0,118440.0,1.58619966]
[1753267675323,0.02116001,118450.0,118440.0,1.58403966]
[1753267675546,0.03646001,118450.0,118440.0,1.58403966]
[1753267675759,0.03646001,118450.0,118440.0,1.58103966]
[1753267675980,0.03646001,118450.0,118440.0,1.57703966]
[1753267677247,0.03646001,118450.0,118440.0,1.50723448]
[1753267677691,0.03646001,118450.0,118440.0,0.9410766]
[1753267677915,0.03646001,118450.0,118440.0,1.51129448]
[1753267679622,0.01795001,118450.0,118440.0,1.51129448]
[1753267682228,1e-08,118450.0,118440.0,1.51129448]
[1753267682474,1e-08,118450.0,118440.0,1.51450448]
[1753267683183,1e-08,118450.0,118440.0,1.54810448]
[1753267683584,1e-08,118450.0,118440.0,1.53020448]
[1753267687670,1e-08,118450.0,118440.0,1.53290448]
[1753267687904,1e-08,118450.0,118440.0,1.63488178]
[1753267688382,0.40000001,118450.0,118440.0,1.63488178]
[1753267688627,0.40000001,118450.0,118440.0,1.55040448]
[1753267691146,0.40000001,118450.0,118440.0,1.53290448]
[1753267693086,0.40000001,118450.0,118440.0,1.51450448]
[1753267693617,0.40000001,118450.0,118440.0,1.51129448]
[1753267693847,0.40000001,118450.0,118440.0,1.51450448]
[1753267694308,0.40000001,118450.0,118440.0,1.51129448]
[1753267695679,0.40000001,118450.0,118440.0,1.51450448]
[1753267696126,0.40000001,118450.0,118440.0,1.51129448]
[1753267697228,0.40000001,118450.0,118440.0,1.90316637]
[1753267697229,1e-08,118450.0,118440.0,1.90316637]
[1753267698451,1e-08,118450.0,118440.0,1.58246978]
[1753267698666,0.01770001,118450.0,118440.0,1.58246978]
[1753267698910,0.04117001,118450.0,118440.0,1.58040978]
[1753267699185,0.02277001,118450.0,118440.0,1.58040978]
[1753267699435,0.02277001,118450.0,118440.0,1.58246978]
[1753267702824,0.04187001,118450.0,118440.0,1.58246978]
[1753267703054,0.04187001,118450.0,118440.0,1.58040978]
[1753267704833,0.04187001,118450.0,118440.0,1.48748989]
[1753267704949,0.04187001,118450.0,118440.0,1.49593248]
[1753267707263,0.04187001,118450.0,118440.0,1.13969295]
[1753267709161,0.04187001,118450.0,118440.0,1.4248466]
[1753267709595,0.04187001,118450.0,118440.0,1.1279566]
[1753267710040,1e-08,118450.0,118440.0,1.2155839]
[1753267711416,1e-08,118450.0,118440.0,1.2124339]
[1753267713933,0.01920001,118450.0,118440.0,1.2124339]
[1753267715392,0.01920001,118450.0,118440.0,1.5113339]
[1753267716603,0.01920001,118450.0,118440.0,0.9410266]
[1753267716808,0.01920001,118450.0,118440.0,1.5113339]
[1753267717215,0.01920001,118450.0,118440.0,0.9410266]
[1753267717414,0.01920001,118450.0,118440.0,1.5113339]
[1753267717727,0.02442001,118450.0,118440.0,1.5113339]
[1753267718183,0.04282001,118450.0,118440.0,0.9410266]
[1753267718390,0.04282001,118450.0,118440.0,1.5093239]
[1753267719073,0.04282001,118450.0,118440.0,0.84609671]
[1753267719262,0.05970355,118450.0,118440.0,1.13969295]
[1753267719480,0.05126182,118450.0,118440.0,1.13969295]
[1753267719683,0.04282001,118450.0,118440.0,1.13969295]
[1753267719884,0.04282001,118450.0,118440.0,1.13769295]
[1753267720313,0.04282001,118450.0,118440.0,1.13869295]
[1753267720519,0.04282001,118450.0,118440.0,1.13669295]
[1753267720729,0.04282001,118450.0,118440.0,1.13769295]
[1753267721151,0.04282001,118450.0,118440.0,1.13769302]
[1753267721152,0.2285513,118450.0,118440.0,1.13769302]
[1753267722282,0.22855123,118450.0,118440.0,1.14613561]
[1753267722722,0.05126174,118450.0,118440.0,1.14613561]
[1753267722941,0.04282001,118450.0,118440.0,1.14613561]
[1753267723333,0.05126174,118450.0,118440.0,1.14613561]
[1753267723574,0.04282001,118450.0,118440.0,1.14613561]
[1753267726598,0.05126174,118450.0,118440.0,1.14613561]
[1753267727014,0.04282001,118450.0,118440.0,1.14613561]
[1753267727420,0.05126182,118450.0,118440.0,1.14613561]
[1753267728039,0.05126182,118450.0,118440.0,0.86098196]
[1753267728249,0.04282001,118450.0,118440.0,1.14613561]
[1753267729761,0.04282001,118450.0,118440.0,1.43128926]
[1753267730176,0.04282001,118450.0,118440.0,1.14613561]
[1753267730779,0.04282001,118450.0,118440.0,1.14814561]
[1753267731257,0.04282001,118450.0,118440.0,1.43329926]
[1753267731669,0.05126174,118450.0,118440.0,1.43329926]
[1753267731922,0.05126174,118450.0,118440.0,1.14814561]
[1753267732094,0.04282001,118450.0,118440.0,1.14814561]
[1753267732510,0.05126174,118450.0,118440.0,1.14814561]
[1753267732705,0.04282001,118450.0,118440.0,1.14814561]
[1753267733312,0.04282001,118450.0,118440.0,1.50458402]
[1753267737638,0.03966001,118450.0,118440.0,1.50458402]
[1753267737894,0.02126001,118450.0,118440.0,1.50458402]
[1753267738423,0.02426001,118450.0,118440.0,1.50458402]
[1753267741623,0.02426001,118450.0,118440.0,0.86299196]
[1753267741834,0.02426001,118450.0,118440.0,1.50458402]
[1753267742464,0.03270182,118450.0,118440.0,1.50458402]
[1753267742673,0.05904369,118450.0,118440.0,0.86098196]
[1753267742876,0.05060174,118450.0,118440.0,1.50257402]
[1753267743297,0.05060174,118450.0,118440.0,0.86098196]
[1753267743497,0.05060174,118450.0,118440.0,1.50257402]
[1753267743717,0.05060174,118450.0,118440.0,0.86098196]
[1753267743934,0.04216001,118450.0,118440.0,1.50257402]
[1753267744747,0.44216001,118450.0,118440.0,1.50257402]
[1753267745761,0.45060174,118450.0,118440.0,0.86098196]
[1753267746005,0.44216001,118450.0,118440.0,1.50257402]
[1753267746772,0.45060174,118450.0,118440.0,1.50257402]
[1753267747210,0.44216001,118450.0,118440.0,1.50257402]
[1753267748690,0.44216001,118450.0,118440.0,0.86098196]
[1753267748992,0.44216001,118450.0,118440.0,1.50257402]
[1753267752066,0.44216001,118450.0,118440.0,0.86098196]
[1753267752279,0.44216001,118450.0,118440.0,1.50257402]
[1753267752490,0.45060174,118450.0,118440.0,1.47724597]
[1753267752721,0.953218,118450.0,118440.0,0.342]
[1753267752940,0.953218,118450.0,118440.0,0.002]
[1753267752941,0.6123696,118450.0,118440.0,0.002]
[1753267753158,0.6123696,118450.0,118440.0,0.17086187]
[1753267753579,0.6039273,118450.0,118440.0,0.002]
[1753267754188,0.6039273,118450.0,118440.0,0.17830489]
[1753267754757,0.6039273,118450.0,118440.0,0.16986187]
[1753267755080,0.6039273,118450.0,118440.0,0.16886187]
[1753267755992,0.6039273,118450.0,118440.0,0.17730496]
[1753267757538,0.21450482,118440.0,118430.0,0.86246255]
[1753267757684,0.22502784,118440.0,118430.0,0.85401932]
[1753267757909,0.23647093,118440.0,118430.0,0.85401932]
[1753267758130,0.05916582,118440.0,118430.0,0.85401932]
[1753267758763,0.05916582,118440.0,118430.0,0.85501932]
[1753267759078,0.05916532,118440.0,118430.0,0.85501932]
[1753267759272,0.23647014,118440.0,118430.0,0.85501968]
[1753267759503,0.06760819,118440.0,118430.0,0.86346298]
[1753267759691,0.07605114,118440.0,118430.0,0.86346298]
[1753267759893,0.07605114,118440.0,118430.0,0.86446298]
[1753267761460,0.06760819,118440.0,118430.0,0.86446298]
[1753267762455,0.07605114,118440.0,118430.0,0.86446298]
[1753267763167,0.06760819,118440.0,118430.0,0.86446298]
[1753267763379,0.05916532,118440.0,118430.0,0.86446298]
[1753267763587,0.06760812,118440.0,118430.0,0.86446298]
[1753267763792,0.07605107,118440.0,118430.0,0.86446298]
[1753267764924,0.07605107,118440.0,118430.0,0.57919893]
[1753267765136,0.06760812,118440.0,118430.0,0.86446298]
[1753267765555,0.05916532,118440.0,118430.0,0.57919893]
[1753267765770,0.05916532,118440.0,118430.0,0.86446298]
[1753267766376,0.07605114,118440.0,118430.0,0.86446298]
[1753267768317,0.05725114,118440.0,118430.0,0.86659298]
[1753267768698,0.05725114,118440.0,118430.0,1.16549298]
[1753267769111,0.05725114,118440.0,118430.0,0.88022893]
[1753267769275,0.05725114,118440.0,118430.0,1.16549298]
[1753267769695,0.06760819,118440.0,118430.0,1.16549298]
[1753267770106,0.05916532,118440.0,118430.0,0.88022893]
[1753267770321,0.05916532,118440.0,118430.0,1.16549298]
[1753267770813,0.06760812,118440.0,118430.0,1.16549298]
[1753267771882,0.05916532,118440.0,118430.0,1.16549298]
[1753267772432,0.05916532,118440.0,118430.0,0.88022893]
[1753267772641,0.06760819,118440.0,118430.0,1.16549298]
[1753267772846,0.05916532,118440.0,118430.0,1.16549298]
[1753267773595,0.04880819,118440.0,118430.0,1.16549298]
[1753267774354,0.04036532,118440.0,118430.0,1.16549298]
[1753267775247,0.04036532,118440.0,118430.0,1.20112276]
[1753267775471,0.04880819,118440.0,118430.0,1.20112276]
[1753267775733,0.04036532,118440.0,118430.0,1.20112276]
[1753267776196,0.03192259,118440.0,118430.0,1.20112276]
[1753267776460,0.03192252,118440.0,118430.0,1.20112276]
[1753267776849,0.02348,118440.0,118430.0,1.20112276]
[1753267778017,0.02048,118440.0,118430.0,1.20112276]
[1753267778426,0.02892252,118440.0,118430.0,1.20112276]
[1753267778629,0.02048,118440.0,118430.0,1.20112276]
[1753267779444,0.02892245,118440.0,118430.0,1.20112276]
[1753267780488,0.02048,118440.0,118430.0,1.20112276]
[1753267781301,0.02048,118440.0,118430.0,0.88022893]
[1753267781452,0.02048,118440.0,118430.0,1.20112276]
[1753267781854,0.02892245,118440.0,118430.0,1.20112276]
[1753267782052,0.03736497,118440.0,118430.0,1.20112276]
[1753267782284,0.04045497,118440.0,118430.0,1.20112276]
[1753267782482,0.2437028,118440.0,118430.0,1.19054961]
[1753267782686,0.2437028,118440.0,118430.0,0.86965578]
[1753267782890,0.07484093,118440.0,118430.0,1.19899298]
[1753267783114,0.2437028,118440.0,118430.0,1.19899305]
[1753267783332,0.07484093,118440.0,118430.0,1.20743635]
[1753267783545,0.2437028,118440.0,118430.0,1.20743635]
[1753267783959,0.06639791,118440.0,118430.0,1.20743635]
[1753267785592,0.06639784,118440.0,118430.0,1.20743635]
[1753267786052,0.07484071,118440.0,118430.0,1.20743635]
[1753267786261,0.06639784,118440.0,118430.0,1.20743635]
[1753267786473,0.06639784,118440.0,118430.0,0.90853635]
[1753267786907,0.07484071,118440.0,118430.0,0.90853635]
[1753267787625,0.08328366,118440.0,118430.0,0.90853635]
[1753267788938,0.07484071,118440.0,118430.0,0.90853635]
[1753267789446,0.08328366,118440.0,118430.0,0.90853635]
[1753267792099,0.08328416,118440.0,118430.0,0.90853635]
[1753267792560,0.25214603,118440.0,118430.0,0.90853635]
[1753267792787,0.25214603,118440.0,118430.0,0.87476236]
[1753267792788,0.23526093,118440.0,118430.0,0.87476236]
[1753267793000,0.23526093,118440.0,118430.0,0.90009319]
[1753267793221,0.23526093,118440.0,118430.0,0.89164975]
[1753267793434,0.23526093,118440.0,118430.0,0.57919936]
[1753267793645,0.23526093,118440.0,118430.0,0.90009319]
[1753267793854,0.23526093,118440.0,118430.0,0.89809319]
[1753267795423,0.23526093,118440.0,118430.0,0.90653649]
[1753267797335,0.05795597,118440.0,118430.0,0.90653649]
[1753267798817,0.07484107,118440.0,118430.0,0.90653649]
[1753267799809,0.07484107,118440.0,118430.0,0.58564266]
[1753267799992,0.25214596,118440.0,118430.0,0.90653649]
[1753267800240,0.08328409,118440.0,118430.0,0.90653649]
[1753267800549,0.25214596,118440.0,118430.0,0.23719936]
[1753267800750,0.24370344,118440.0,118430.0,0.55809319]
[1753267800962,0.24370344,118440.0,118430.0,0.23719936]
[1753267801202,0.23526071,118440.0,118430.0,0.55809319]
[1753267801959,0.23526071,118440.0,118430.0,0.23719936]
[1753267802175,0.24373059,118440.0,118430.0,0.55809319]
[1753267803346,0.24373059,118440.0,118430.0,0.56653656]
[1753267803891,0.05795553,118440.0,118430.0,0.57497986]
[1753267804094,0.06639848,118440.0,118430.0,0.57497986]
[1753267804307,0.05795553,118440.0,118430.0,0.57497986]
[1753267804525,0.04889848,118440.0,118430.0,0.57497986]
[1753267805358,0.04045553,118440.0,118430.0,0.57700986]
[1753267805590,0.04889848,118440.0,118430.0,0.57700986]
[1753267806160,0.04889791,118440.0,118430.0,0.57700986]
[1753267806765,0.05734086,118440.0,118430.0,0.57700986]
[1753267807379,0.05734086,118440.0,118430.0,0.55146647]
[1753267807646,0.04889791,118440.0,118430.0,0.55146647]
[1753267807853,0.05734086,118440.0,118430.0,0.55146647]
[1753267809220,0.05734086,118440.0,118430.0,0.57708875]
[1753267809657,0.05734086,118440.0,118430.0,0.56864545]
[1753267809868,0.22620273,118440.0,118430.0,0.56864545]
[1753267810687,0.22620273,118440.0,118430.0,0.24775162]
[1753267810863,0.22620273,118440.0,118430.0,0.56864545]
[1753267811508,0.05734086,118440.0,118430.0,0.56864545]
[1753267811652,0.05734086,118440.0,118430.0,0.57708875]
[1753267812948,0.06578388,118440.0,118430.0,0.25619492]
[1753267813130,0.06578388,118440.0,118430.0,0.57708875]
[1753267813536,0.05734086,118440.0,118430.0,0.57708875]
[1753267814690,0.22620273,118440.0,118430.0,0.57708875]
[1753267814875,0.23464575,118440.0,118430.0,0.57708875]
[1753267815462,0.23464639,118440.0,118430.0,0.57708875]
[1753267817578,0.04889841,118440.0,118430.0,0.57708875]
[1753267819404,0.04045546,118440.0,118430.0,0.57708875]
[1753267819617,0.04889833,118440.0,118430.0,0.57708875]
[1753267819826,0.05425128,118440.0,118430.0,0.25619492]
[1753267819995,0.05425128,118440.0,118430.0,0.57708875]
[1753267820246,0.03736546,118440.0,118430.0,0.57708875]
[1753267820559,0.43121912,118450.0,118440.0,0.19419028]
[1753267820761,0.3168837,118450.0,118440.0,0.53456313]
[1753267820968,0.3168837,118450.0,118440.0,0.53757313]
[1753267821288,0.30844182,118450.0,118440.0,0.53757313]
[1753267821829,0.31788377,118450.0,118440.0,0.53757313]
[1753267822228,0.30944182,118450.0,118440.0,0.53757313]
[1753267822435,0.32632593,118450.0,118440.0,0.2350793]
[1753267822619,0.32632593,118450.0,118440.0,0.53757313]
[1753267822831,0.32732593,118450.0,118440.0,0.53757313]
[1753267823028,0.33576816,118450.0,118440.0,0.53456313]
[1753267823177,0.35326816,118450.0,118440.0,0.2136693]
[1753267823381,0.35326816,118450.0,118440.0,0.53456313]
[1753267823631,0.52211577,118450.0,118440.0,0.51767774]
[1753267823794,0.52707626,118450.0,118440.0,0.53457399]
[1753267824355,0.54487626,118450.0,118440.0,0.53457399]
[1753267824562,0.54487626,118450.0,118440.0,0.54301672]
[1753267824963,0.54487626,118450.0,118440.0,0.52613119]
[1753267825190,0.53643431,118450.0,118440.0,0.52613119]
[1753267825727,0.53643431,118450.0,118440.0,0.53457399]
[1753267826575,0.53643431,118450.0,118440.0,0.20522678]
[1753267826783,0.52799215,118450.0,118440.0,0.19475391]
[1753267827217,0.52799215,118450.0,118440.0,0.52410119]
[1753267827424,0.52799215,118450.0,118440.0,0.53254399]
[1753267827628,0.52799215,118450.0,118440.0,0.21163958]
[1753267827816,0.51954992,118450.0,118440.0,0.20319678]
[1753267828008,0.51954992,118450.0,118440.0,0.51565832]
[1753267828248,0.00844295,118440.0,118430.0,0.83963264]
[1753267828429,0.02724295,118440.0,118430.0,0.85924166]
[1753267828641,0.02940295,118440.0,118430.0,0.85924166]
[1753267828849,0.0294028,118440.0,118430.0,0.85924166]
[1753267829074,0.03784575,118440.0,118430.0,0.85924166]
[1753267829746,0.21515028,118440.0,118430.0,0.8507985]
[1753267830038,0.04628841,118440.0,118430.0,0.8507985]
[1753267831112,0.05473143,118440.0,118430.0,0.8507985]
[1753267831740,0.23203589,118440.0,118430.0,0.53833789]
[1753267831867,0.23505589,118440.0,118430.0,0.8592423]
[1753267832731,0.23505589,118440.0,118430.0,0.8676856]
[1753267832957,0.23505639,118440.0,118430.0,0.8676856]
[1753267833365,0.04930841,118440.0,118430.0,0.8676856]
[1753267833776,0.2266133,118440.0,118430.0,0.5687856]
[1753267833976,0.23505639,118440.0,118430.0,0.5687856]
[1753267835791,0.23505639,118440.0,118430.0,0.23943789]
[1753267835997,0.21817093,118440.0,118430.0,0.55189893]
[1753267837523,0.21817093,118440.0,118430.0,0.5603423]
[1753267839793,0.21817093,118440.0,118430.0,0.2309946]
[1753267839999,0.21817093,118440.0,118430.0,0.55189901]
[1753267840512,0.21817093,118440.0,118430.0,0.56034245]
[1753267841106,0.21817093,118440.0,118430.0,0.56878582]
[1753267844192,0.21817093,118440.0,118430.0,0.57722912]
[1753267844394,0.04086568,118440.0,118430.0,0.57722912]
[1753267844811,0.04930812,118440.0,118430.0,0.57722912]
[1753267845012,0.05775107,118440.0,118430.0,0.57722912]
[1753267845235,0.23505596,118440.0,118430.0,0.25632471]
[1753267845511,0.06619409,118440.0,118430.0,0.57722912]
[1753267846130,0.23505596,118440.0,118430.0,0.57722912]
[1753267846722,0.06619409,118440.0,118430.0,0.57722912]
[1753267846904,0.05775107,118440.0,118430.0,0.57722912]
[1753267848097,0.23505596,118440.0,118430.0,0.57722912]
[1753267848825,0.04930812,118440.0,118430.0,0.25632471]
[1753267849024,0.04930812,118440.0,118430.0,0.57722912]
[1753267849246,0.05775107,118440.0,118430.0,0.57722912]
[1753267849419,0.04086525,118440.0,118430.0,0.57722912]
[1753267849765,0.04930812,118440.0,118430.0,0.57722912]
[1753267850265,0.04086525,118440.0,118430.0,0.57722912]
[1753267850723,0.04086525,118440.0,118430.0,0.25632471]
[1753267850924,0.0493082,118440.0,118430.0,0.57722912]
[1753267851179,0.04930812,118440.0,118430.0,0.57722912]
[1753267851378,0.04086525,118440.0,118430.0,0.57722912]
[1753267851580,0.04930805,118440.0,118430.0,0.57722912]
[1753267852143,0.057751,118440.0,118430.0,0.57722912]
[1753267852886,0.04930805,118440.0,118430.0,0.57722912]
[1753267853205,0.05775092,118440.0,118430.0,0.57722912]
[1753267853929,0.05775092,118440.0,118430.0,0.25632471]
[1753267854104,0.05775092,118440.0,118430.0,0.57722912]
[1753267855761,0.04086525,118440.0,118430.0,0.25632471]
[1753267855989,0.04086525,118440.0,118430.0,0.57722912]
[1753267856265,0.04086525,118440.0,118430.0,0.25632471]
[1753267856474,0.0493082,118440.0,118430.0,0.57722912]
[1753267857398,0.21817007,118440.0,118430.0,0.24788141]
[1753267857601,0.78270955,118440.0,118430.0,0.02562228]
[1753267857882,0.78270955,118440.0,118420.0,0.53257679]
[1753267857883,0.73448717,118430.0,118420.0,0.53257679]
[1753267858126,0.90845329,118430.0,118420.0,0.53257679]
[1753267858356,0.50845329,118430.0,118420.0,0.53257679]
[1753267858964,0.50845329,118430.0,118420.0,0.52413263]
[1753267859187,0.50000992,118430.0,118420.0,0.52413263]
[1753267860052,0.50000992,118430.0,118420.0,0.5241327]
[1753267860413,0.50000992,118430.0,118420.0,0.53257693]
[1753267860672,0.50000992,118430.0,118420.0,0.54300109]
[1753267860888,0.3311338,118430.0,118420.0,0.55144518]
[1753267861092,0.34802069,118430.0,118420.0,0.55144469]
[1753267861295,0.51386681,118430.0,118420.0,0.55144469]
[1753267861499,0.5223109,118430.0,118420.0,0.54300067]
[1753267862003,0.5223109,118430.0,118420.0,0.56811788]
[1753267862417,0.34499098,118430.0,118420.0,0.5765619]
[1753267862698,0.4962671,118430.0,118420.0,0.5765619]
[1753267863060,0.5047109,118430.0,118420.0,0.5765619]
[1753267863522,0.5237109,118430.0,118420.0,0.5765619]
[1753267863930,0.34639012,118430.0,118420.0,0.5765619]
[1753267864368,0.35483385,118430.0,118420.0,0.5765619]
[1753267864573,0.35483378,118430.0,118420.0,0.5765619]
[1753267864887,0.34639012,118430.0,118420.0,0.5765619]
[1753267865094,0.34639005,118430.0,118420.0,0.5765619]
[1753267865497,0.30844316,118430.0,118420.0,0.5765619]
[1753267865684,0.3,118430.0,118420.0,0.6155119]
[1753267866151,0.3,118430.0,118420.0,0.93641631]
[1753267866368,0.3,118430.0,118420.0,0.6155119]
[1753267871563,0.3,118430.0,118420.0,0.5973119]
[1753267872529,0.3,118430.0,118420.0,0.57219469]
[1753267873173,0.31353316,118430.0,118420.0,0.55144469]
[1753267873377,0.30509,118430.0,118420.0,0.55144469]
[1753267873594,0.30206,118430.0,118420.0,0.55144469]
[1753267873921,0.31050316,118430.0,118420.0,0.55144469]
[1753267874286,0.31894639,118430.0,118420.0,0.55144469]
[1753267874496,0.33041983,118430.0,118420.0,0.55144469]
[1753267874700,0.34781976,118430.0,118420.0,0.55144469]
[1753267874946,0.33937639,118430.0,118420.0,0.55144469]
[1753267875746,0.33093316,118430.0,118420.0,0.55144469]
[1753267876020,0.33937646,118430.0,118420.0,0.57730676]
[1753267876225,0.33937653,118430.0,118420.0,0.57730676]
[1753267876649,0.34782005,118430.0,118420.0,0.57730676]
[1753267878012,0.34782005,118430.0,118420.0,0.57532676]
[1753267878216,0.33937653,118430.0,118420.0,0.57532676]
[1753267878431,0.33937646,118430.0,118420.0,0.57532676]
[1753267878635,0.33937646,118430.0,118420.0,0.57730676]
[1753267878995,0.34781983,118430.0,118420.0,0.57730676]
[1753267879200,0.33937646,118430.0,118420.0,0.57730676]
[1753267879411,0.34781998,118430.0,118420.0,0.57730676]
[1753267879632,0.31688646,118430.0,118420.0,0.59540676]
[1753267879883,0.3,118430.0,118420.0,0.59865676]
[1753267880107,0.3,118430.0,118420.0,0.61755676]
[1753267884007,0.30844323,118430.0,118420.0,0.59865676]
[1753267884223,0.3,118430.0,118420.0,0.59865676]
[1753267886546,0.30844316,118430.0,118420.0,0.59865676]
[1753267887801,0.30844316,118430.0,118420.0,0.27775235]
[1753267888011,0.31688646,118430.0,118420.0,0.59865676]
[1753267888223,0.30844316,118430.0,118420.0,0.58055676]
[1753267889088,0.33821653,118430.0,118420.0,0.57730676]
[1753267889300,0.34117653,118430.0,118420.0,0.57730676]
[1753267889525,0.34117653,118430.0,118420.0,0.25640235]
[1753267889967,0.35806378,118430.0,118420.0,0.57730676]
[1753267890178,0.35806371,118430.0,118420.0,0.57730676]
[1753267890385,0.34962005,118430.0,118420.0,0.57730676]
[1753267890591,0.34117653,118430.0,118420.0,0.57730676]
[1753267891350,0.34962005,118430.0,118420.0,0.57730676]
[1753267892472,0.35806364,118430.0,118420.0,0.57730676]
[1753267892920,0.3665073,118430.0,118420.0,0.57730676]
[1753267893346,0.61293067,118430.0,118420.0,0.34676648]
[1753267894125,0.61293067,118430.0,118420.0,0.02586207]
[1753267894353,0.61293067,118430.0,118420.0,0.34676648]
[1753267894565,0.61393067,118430.0,118420.0,0.32090441]
[1753267895029,0.61493067,118430.0,118420.0,0.32090441]
[1753267898333,0.61493067,118430.0,118420.0,0.49823931]
[1753267898597,0.61493067,118430.0,118420.0,0.51512812]
[1753267899050,0.61493067,118430.0,118420.0,0.54014722]
[1753267900801,0.60648708,118430.0,118420.0,0.53170285]
[1753267901075,0.59804342,118430.0,118420.0,0.35436802]
[1753267901549,0.59804342,118430.0,118420.0,0.52325841]
[1753267901924,0.59804342,118430.0,118420.0,0.53170285]
[1753267902763,0.60648708,118430.0,118420.0,0.54859138]
[1753267902996,0.60497425,118430.0,118420.0,0.55703547]
[1753267903220,0.41921053,118430.0,118420.0,0.55904498]
[1753267903429,0.40845412,118430.0,118420.0,0.55904498]
[1753267903948,0.002,118430.0,118420.0,0.615744]
[1753267904178,0.002,118430.0,118420.0,0.93664841]
[1753267905368,0.002,118430.0,118420.0,0.58003809]
[1753267907558,0.402,118430.0,118420.0,0.58003809]
[1753267908490,0.402,118430.0,118420.0,0.92003809]
[1753267909435,1e-08,118450.0,118440.0,0.53419028]
[1753267909677,1e-08,118450.0,118440.0,1.4592463]
[1753267909924,1e-08,118450.0,118440.0,1.5469736]
[1753267911146,1e-08,118450.0,118440.0,1.5479736]
[1753267911639,1e-08,118450.0,118440.0,1.5489736]
[1753267911875,1e-08,118450.0,118440.0,1.56600175]
[1753267912875,1e-08,118450.0,118440.0,1.5489736]
[1753267924993,1e-08,118450.0,118440.0,1.5303736]
[1753267925604,1e-08,118450.0,118440.0,1.5469736]
[1753267937222,1e-08,118450.0,118440.0,1.93857037]
[1753267938013,1e-08,118450.0,118440.0,1.7697085]
[1753267938220,1e-08,118450.0,118440.0,1.8541858]
[1753267938962,1e-08,118450.0,118440.0,1.7697085]
[1753267941134,1e-08,118450.0,118440.0,1.35241038]
[1753267941437,1e-08,118450.0,118440.0,1.37776438]
[1753267956661,1e-08,118450.0,118440.0,1.36116438]
[1753267957762,1e-08,118450.0,118440.0,1.37776438]
[1753267960043,1e-08,118450.0,118440.0,1.46224168]
[1753267960479,1e-08,118450.0,118440.0,1.37776438]
[1753267961011,1e-08,118450.0,118440.0,1.54662625]
[1753267961223,1e-08,118450.0,118440.0,1.56351164]
[1753267963237,1e-08,118450.0,118440.0,1.95528827]
[1753267964459,0.0002,118470.0,118460.0,0.55160651]
[1753267964695,0.00034769,118470.0,118460.0,1.63382691]
[1753267964919,0.00034769,118470.0,118460.0,1.57820427]
[1753267965147,0.00034769,118470.0,118460.0,1.60061427]
[1753267965776,0.00034769,118470.0,118460.0,1.60888681]
[1753267966558,0.00034769,118470.0,118460.0,1.60988681]
[1753267967174,0.00034769,118470.0,118460.0,1.62608681]
[1753267967398,0.00034769,118470.0,118460.0,1.62708681]
[1753267970188,0.4248442,118480.0,118470.0,1.19279059]
[1753267970391,0.4297742,118480.0,118470.0,1.27726789]
[1753267970605,0.42133071,118480.0,118470.0,1.27726789]
[1753267970822,0.02093,118480.0,118470.0,1.30261789]
[1753267971265,0.00493,118480.0,118470.0,1.30261789]
[1753267974713,0.00493,118480.0,118470.0,1.30463789]
[1753267975748,0.00493,118480.0,118470.0,1.60353789]
[1753267975968,0.0313,118490.0,118480.0,0.19412472]
[1753267976191,0.03329,118490.0,118480.0,0.51472495]
[1753267977342,0.03429,118490.0,118480.0,0.51472495]
[1753267977536,0.03529,118490.0,118480.0,0.51472495]
[1753267978581,0.03533921,118490.0,118480.0,0.51472495]
[1753267979532,0.03533921,118490.0,118480.0,0.53967239]
[1753267981734,0.03533921,118490.0,118480.0,0.83857239]
[1753267985983,0.03533921,118490.0,118480.0,0.51797216]
[1753267986183,0.03533921,118490.0,118480.0,0.83857239]
[1753267987788,0.03533921,118490.0,118480.0,0.51797216]
[1753267988011,0.03533921,118490.0,118480.0,0.83857239]
[1753267989207,0.03533921,118490.0,118480.0,0.8216927]
[1753267989422,0.07207596,118490.0,118480.0,0.85602148]
[1753267989635,0.24930603,118490.0,118480.0,0.53542125]
[1753267989860,0.24930603,118490.0,118480.0,0.85602148]
[1753267990238,0.07207589,118490.0,118480.0,0.85602148]
[1753267990449,0.03831921,118490.0,118480.0,0.86446122]
[1753267990618,0.05519748,118490.0,118480.0,0.86446122]
[1753267991424,0.06363686,118490.0,118480.0,0.54386099]
[1753267991630,0.23242818,118490.0,118480.0,0.51010132]
[1753267991827,0.2239888,118490.0,118480.0,0.34129646]
[1753267992030,0.4584661,118490.0,118480.0,0.32384744]
[1753267992533,0.4584661,118490.0,118480.0,0.64444767]
[1753267992746,0.4584661,118490.0,118480.0,0.32384744]
[1753267993563,0.4584661,118490.0,118480.0,0.02494744]
[1753267993862,0.34013974,118480.0,118470.0,0.84797111]
[1753267994068,0.34223974,118480.0,118470.0,0.84797111]
[1753267994261,0.34521974,118480.0,118470.0,0.52737088]
[1753267994468,0.35365969,118480.0,118470.0,0.84797111]
[1753267995466,0.36209979,118480.0,118470.0,0.84797111]
[1753267995685,0.35365969,118480.0,118470.0,0.84797111]
[1753267995905,0.36209979,118480.0,118470.0,0.84797111]
[1753267996489,0.53934482,118480.0,118470.0,0.50204968]
[1753267996700,0.53090508,118480.0,118470.0,0.82264991]
[1753267997518,0.53090508,118480.0,118470.0,0.83109058]
[1753267997784,0.53090508,118480.0,118470.0,0.83953117]
[1753267997991,0.53190508,118480.0,118470.0,0.83953117]
[1753267999344,0.53190508,118480.0,118470.0,0.54063117]
[1753267999772,0.53290508,118480.0,118470.0,0.54063117]
[1753267999981,0.36410022,118480.0,118470.0,0.54907162]
[1753268000633,0.36410022,118480.0,118470.0,0.22847139]
[1753268000841,0.36410022,118480.0,118470.0,0.54907162]
[1753268001221,0.35566005,118480.0,118470.0,0.54907162]
[1753268002807,0.35566005,118480.0,118470.0,0.22847139]
[1753268003026,0.35566005,118480.0,118470.0,0.54907162]
[1753268003658,0.53290508,118480.0,118470.0,0.54907162]
[1753268004806,0.54134532,118480.0,118470.0,0.54063117]
[1753268005441,0.54134532,118480.0,118470.0,0.54907169]
[1753268005877,0.35566005,118480.0,118470.0,0.54907133]
[1753268006937,0.52446491,118480.0,118470.0,0.54907133]
[1753268007138,0.53290508,118480.0,118470.0,0.54907133]
[1753268007989,0.36410022,118480.0,118470.0,0.57398974]
[1753268008826,0.35566005,118480.0,118470.0,0.57398974]
[1753268009233,0.35565969,118480.0,118470.0,0.57398974]
[1753268009452,0.35565962,118480.0,118470.0,0.57398974]
[1753268010367,0.34423974,118480.0,118470.0,0.89458997]
[1753268010513,0.35267962,118480.0,118470.0,0.89458997]